[Event "40th OBSenEM 2024"]
[Site "Berlin"]
[Date "2024.02.07"]
[Round "8.4"]
[White "Syre, Christian"]
[Black "Jandke, Manfred"]
[Result "1-0"]
[ECO "A11"]
[WhiteElo "2111"]
[BlackElo "2035"]
[Annotator "NA RC"]
[PlyCount "89"]
[EventDate "2024.02.06"]
[EventType "swiss"]
[EventCountry "GER"]
[SourceTitle "playchess.com"]
[Source "ChessBase"]
[SourceQuality "1"]
[TimeControl "40/5400+30:1800+30"]

1. Nf3 {[%emt 0:00:08]} d5 {[%emt 0:00:31]} 2. e3 {[%emt 0:00:28]} c6 {[%emt 0:02:18]} 3. c4 {[%emt 0:00:51]} Nf6 {[%emt 0:00:23]} 4. Nc3 {[%emt 0:00:08]} e6 {[%emt 0:01:02]} 5. b3 {[%emt 0:00:21]} Be7 {[%emt 0:00:20]} 6. Bb2 {[%emt 0:00:06]} Nbd7 {[%emt 0:00:12]} 7. Qc2 {[%emt 0:00:48]} a5 {[%emt 0:02:48]} 8. Be2 {[%emt 0:12:26]} O-O {[%emt 0:08:26]} 9. Rg1 {[%emt 0:08:40]} dxc4 {[%emt 0:06:17]} 10. bxc4 {[%emt 0:00:07] [#]} a4 $1 {[%emt 0:11:28]} 11. Rb1 {[%emt 0:04:17]} a3 {[%emt 0:03:16]} (11... b5 $11 {is superior.}) 12. Ba1 {[%emt 0:00:03]} Qc7 {[%emt 0:08:22] [#]} (12... b5 $1 $11 {remains equal.}) 13. g4 $1 {[%emt 0:00:19]} e5 {[%emt 0:02:38]} 14. g5 {[%emt 0:00:30]} Ne8 {[%emt 0:02:44]} 15. h4 {[%emt 0:13:44]} (15. Ne4 $16) 15... f5 $1 {[%emt 0:08:22]} 16. gxf6 {[%emt 0:00:22]} Ndxf6 {[%emt 0:01:09]} 17. Bd3 {[%emt 0:03:08]} Ra5 $16 {[%emt 0:08:14]} ({Black should try} 17... h6 $1 $14) 18. Ke2 {[%emt 0:22:57]} Bg4 {[%emt 0:10:39]} 19. Rxg4 {[%emt 0:04:42]} Nxg4 {[%emt 0:00:06]} 20. Bxh7+ {[%emt 0:00:05]} Kh8 {[%emt 0:00:21]} 21. Rg1 {[%emt 0:00:15]} Qd7 {[%emt 0:03:39]} 22. h5 {[%emt 0:27:05]} e4 {[%emt 0:01:42]} 23. Nxe4 {[%emt 0:00:00]} Rxh5 {[%emt 0:01:17]} 24. Bg6 {[%emt 0:00:00]} Rh3 {[%emt 0:03:49]} 25. Bxe8 {[%emt 0:00:00]} Qf5 {[%emt 0:01:03]} 26. Nd4 {[%emt 0:00:00]} Qh7 {[%emt 0:05:51]} 27. Rxg4 {[%emt 0:00:00]} Rxe8 {[%emt 0:00:03]} 28. Ng3 {[%emt 0:00:00]} Bf6 {[%emt 0:01:56]} 29. Qxh7+ {[%emt 0:00:00]} Kxh7 {[%emt 0:00:07]} 30. Bc3 {[%emt 0:00:00]} Rh4 {[%emt 0:04:43]} 31. Rxh4+ {[%emt 0:00:37]} Bxh4 {[%emt 0:00:04]} 32. Ngf5 {[%emt 0:00:39]} Bf6 {[%emt 0:00:11]} 33. Nd6 {[%emt 0:00:27]} Rb8 {[%emt 0:00:51]} 34. Ne4 {[%emt 0:01:06]} Be7 {[%emt 0:01:18]} 35. c5 {[%emt 0:00:22]} Kg6 {[%emt 0:00:47]} 36. f4 {[%emt 0:00:30]} Kf7 {[%emt 0:00:28]} 37. Kd3 {[%emt 0:00:18]} Rd8 {[%emt 0:00:44]} 38. Kc4 {[%emt 0:00:19]} Rh8 {[%emt 0:00:16]} 39. Bb4 {[%emt 0:00:59]} Rh5 {[%emt 0:00:26]} 40. Kb3 {[%emt 0:01:04]} Ke8 {[%emt 0:00:54]} 41. Kxa3 {[%emt 0:30:21]} Kd7 {[%emt 0:30:39]} 42. Kb3 {[%emt 0:00:37]} b6 {[%emt 0:00:00]} 43. cxb6 {[%emt 0:00:00]} c5 {[%emt 0:00:00]} 44. b7 {[%emt 0:00:00]} Kc7 {[%emt 0:00:00]} 45. Bxc5 {[%emt 0:00:00]} 1-0

[Event "40th OBSenEM 2024"]
[Site "Berlin"]
[Date "2024.02.08"]
[Round "9.2"]
[White "Postler, Reinhard"]
[Black "Syre, Christian"]
[Result "1/2-1/2"]
[ECO "C88"]
[WhiteElo "2196"]
[BlackElo "2111"]
[Annotator "TA"]
[PlyCount "41"]
[EventDate "2024.02.06"]
[EventType "swiss"]
[EventCountry "GER"]
[SourceTitle "playchess.com"]
[Source "ChessBase"]
[SourceQuality "1"]
[TimeControl "40/5400+30:1800+30"]

{[%evp 21,41,59,45,50,57,60,58,60,76,75,42,62,87,0,8,0,0,0,0,-14,-9,-27]} 1. e4 {[%emt 0:00:08]} e5 {[%emt 0:00:36]} 2. Nf3 {[%emt 0:00:08]} Nc6 {[%emt 0:00:12]} 3. Bb5 {[%emt 0:00:13]} a6 {[%emt 0:01:06]} 4. Ba4 {[%emt 0:00:19]} Nf6 {[%emt 0:00:40]} 5. O-O {[%emt 0:00:26]} Be7 {[%emt 0:00:09]} 6. Re1 {[%emt 0:00:32]} b5 {[%emt 0:00:14]} 7. Bb3 {[%emt 0:00:01]} O-O {[%emt 0:01:45]} 8. a4 {[%emt 0:00:46]} Rb8 {[%emt 0:00:30]} 9. axb5 {[%emt 0:02:29]} axb5 {[%emt 0:01:23]} 10. c3 {[%emt 0:05:37]} d5 {[%emt 0:06:27]} 11. exd5 {[%emt 0:04:12]} Nxd5 {[%emt 0:00:02]} 12. Nxe5 {[%emt 0:02:19]} Nxe5 {[%emt 0:00:04]} 13. Rxe5 {[%emt 0:00:10]} c6 {[%emt 0:00:24]} 14. d4 {[%emt 0:02:43] White is slightly better.} Bd6 {[%emt 0:00:21] [#]} 15. Re1 {[%emt 0:00:37]} Qh4 {[%emt 0:00:13]} 16. g3 {[%emt 0:00:38]} Qh3 {[%emt 0:00:11]} 17. Qf3 {[%emt 0:15:51]} (17. Re4 $16) 17... Bg4 $132 {[%emt 0:00:30][%mdl 2048] Black has counterplay. The position is equal.} 18. Qg2 {[%emt 0:00:49]} Qh5 {[%emt 0:01:14] [#] ...Rbe8 is the strong threat.} 19. Bxd5 {[%emt 0:04:31]} cxd5 {[%emt 0:00:12]} 20. f4 {[%emt 0:00:58] White is weak on the light squares} (20. Qf1 $5) 20... Rfe8 {[%emt 0:00:57][%mdl 1024] Black has compensation.} 21. Be3 {[%emt 0:07:42] Weighted Error Value: White=0.16 (very precise) /Black=0.03 (flawless) .  Mistake:       	White=1     	---        OK:         	White=1     	Black=2      Best:        	White=1     	Black=1} 1/2-1/2

[Event "40th OBSenEM 2024"]
[Site "Berlin"]
[Date "2024.02.08"]
[Round "9.3"]
[White "Schulz, Michael"]
[Black "Pueschel, Werner"]
[Result "1-0"]
[ECO "A43"]
[WhiteElo "2168"]
[BlackElo "2040"]
[Annotator "TA"]
[PlyCount "67"]
[EventDate "2024.02.06"]
[EventType "swiss"]
[EventCountry "GER"]
[SourceTitle "playchess.com"]
[Source "ChessBase"]
[SourceQuality "1"]
[TimeControl "40/5400+30:1800+30"]

{[%evp 12,67,52,62,50,38,68,37,72,92,98,75,114,110,119,117,122,68,168,165,256,188,238,169,439,314,571,602,948,924,890,787,1382,1364,2848,2575,2702,2737,2233,1957,935,927,29992,29991,29993,29986,29996,29980,29980,29981,29981,29982,29982,29982,29988,29989,29989,1093]} 1. d4 {[%emt 0:00:04]} c5 {[%emt 0:00:49]} 2. d5 {[%emt 0:00:07]} Nf6 {[%emt 0:00:47][%cal Bg8f6,Bf6d7,Bd7b6][%mdl 32]} 3. Nc3 {[%emt 0:00:16]} d6 {[%emt 0:00:12]} 4. e4 {[%emt 0:00:09]} g6 {[%emt 0:00:27]} 5. f4 {[%emt 0:00:18]} Bg7 {[%emt 0:00:14]} 6. Bb5+ {[%emt 0:02:06]} Nfd7 {[%emt 0:00:24]} 7. a4 {[%emt 0:04:50]} O-O {[%emt 0:01:35]} 8. Nf3 {[%emt 0:00:26]} a6 {[%emt 0:06:18]} 9. Bc4 {[%emt 0:08:07]} Nb6 {[%emt 0:00:50] White is slightly better.} 10. Be2 {[%emt 0:00:41]} Bg4 {[%emt 0:00:08]} 11. O-O {[%emt 0:00:58][%cal Bh1f1,Bf1f3,Bf3h3][%mdl 32]} Bxf3 {[%emt 0:00:44]} 12. Rxf3 {[%emt 0:02:09]} N8d7 {[%emt 0:00:31]} 13. a5 {[%emt 0:00:59]} Nc8 {[%emt 0:00:09]} 14. Be3 {[%emt 0:10:04] Black is weak on the light squares} (14. f5 $16) 14... Qc7 {[%emt 0:16:11]} ({Better is} 14... b5 $14) 15. Qe1 $18 {[%emt 0:05:46]} Nf6 {[%emt 0:03:00]} (15... Na7 $142 16. Rh3 Nb5) 16. Rh3 {[%emt 0:01:36]} e6 {[%emt 0:01:12]} (16... b5 $142 17. f5 b4) 17. Qh4 {[%emt 0:01:13][%cal Oe4e5] [#] e5! would now be deadly.} Re8 $2 {[%emt 0:02:00]} (17... Ne7 {keeps fighting.} 18. g4 h6) 18. g4 {[%emt 0:05:10] aiming for g5.} h5 $2 {[%emt 0:10:18]} (18... h6 {might work better.} 19. g5 Nh7 20. dxe6 (20. gxh6 Bxc3 21. bxc3 exd5 $16) 20... fxe6) 19. gxh5 {[%emt 0:02:05]} gxh5 {[%emt 0:04:35]} 20. Kh1 {[%emt 0:10:54]} Ne7 {[%emt 0:07:38]} 21. Bxh5 {[%emt 0:05:24]} exd5 {[%emt 0:01:15]} 22. Rg1 {[%emt 0:00:34] Black must now prevent f5.} Kf8 {[%emt 0:03:54] [#]} 23. Rxg7 $1 {[%emt 0:04:23][%mdl 512]} Kxg7 {[%emt 0:00:11]} 24. Qg5+ {[%emt 0:00:47]} Ng6 {[%emt 0:00:14]} 25. Bxg6 {[%emt 0:07:31]} (25. Nxd5 Nxd5 26. f5 (26. exd5 Qe7 $11) (26. Qxd5 Qc6 $11) 26... Rh8 (26... Rxe4 $2 27. Bxg6 Rg8 28. Bh7+ Kf8 29. Qxg8+ $18) (26... Nxe3 27. f6+ Kg8 28. Bxg6 fxg6 29. Qxg6+ Kf8 30. Rh8#)) (25. exd5 Rh8 26. f5 Qe7 27. fxg6 Qe5 $11) 25... fxg6 {[%emt 0:14:32]} 26. f5 {[%emt 0:00:24]} Ng8 {[%emt 0:05:50]} 27. Qxg6+ {[%emt 0:00:30] White mates.} Kf8 {[%emt 0:00:13]} 28. Rh7 {[%emt 0:07:01]} Re7 {[%emt 0:01:48]} 29. Nxd5 {[%emt 0:00:41]} Rxh7 {[%emt 0:00:39]} 30. Nxc7 {[%emt 0:00:07]} Rxc7 {[%emt 0:00:09]} 31. Qxd6+ {[%emt 0:00:09]} Re7 {[%emt 0:00:20]} 32. f6 {[%emt 0:00:14]} Nxf6 {[%emt 0:00:27]} 33. Qxf6+ {[%emt 0:00:04]} Rf7 {[%emt 0:00:17]} 34. Qh8+ {[%emt 0:00:05] Weighted Error Value: White=0.20 (precise) /Black=0.73.  Mistake:       	White=1     	Black=5      Inaccurate:     	White=1     	Black=4      OK:         	White=5     	Black=2      Best:        	White=1     	---} 1-0

[Event "40th OBSenEM 2024"]
[Site "Berlin"]
[Date "2024.02.08"]
[Round "9.4"]
[White "Kreutzkamp, Hans-Rudolf"]
[Black "Knops, Peter"]
[Result "1-0"]
[ECO "C01"]
[WhiteElo "2111"]
[BlackElo "1903"]
[Annotator "TA"]
[PlyCount "61"]
[EventDate "2024.02.06"]
[EventType "swiss"]
[EventCountry "GER"]
[SourceTitle "playchess.com"]
[Source "ChessBase"]
[SourceQuality "1"]
[TimeControl "40/5400+30:1800+30"]

{[%evp 11,61,12,0,0,10,0,-10,-6,1,0,0,0,-10,-3,-6,-4,0,0,-13,-16,-10,-8,0,0,39,0,45,20,41,0,0,0,0,0,43,18,30,16,24,25,348,333,471,473,531,379,788,775,5318,5098,2246,1998]} 1. e4 {[%emt 0:00:02]} e6 {[%emt 0:00:06]} 2. d4 {[%emt 0:00:04]} d5 {[%emt 0:00:04]} 3. exd5 {[%emt 0:00:42]} exd5 {[%emt 0:00:05]} 4. Bd3 {[%emt 0:00:05]} Nc6 {[%emt 0:00:07]} 5. c3 {[%emt 0:00:07]} Bd6 {[%emt 0:00:14]} 6. h3 {[%emt 0:00:11]} Nge7 {[%emt 0:00:13]} 7. Qc2 {[%emt 0:00:30][%cal Og1f3]} Be6 {[%emt 0:03:18]} 8. Nf3 {[%emt 0:00:22][%cal Oe1g1]} Qd7 {[%emt 0:04:07]} 9. Nbd2 {[%emt 0:01:45][%cal Bb1d2,Bd2f1,Bf1e3][%mdl 32] The position is equal.} Bf5 {[%emt 0:02:16]} 10. Nf1 {[%emt 0:01:52]} O-O-O {[%emt 0:07:59]} 11. Ne3 {[%emt 0:02:50]} Bxd3 {[%emt 0:00:37]} 12. Qxd3 {[%emt 0:00:03]} Rde8 {[%emt 0:00:47]} 13. Bd2 {[%emt 0:02:16]} f6 {[%emt 0:04:16]} 14. O-O-O {[%emt 0:00:55]} Nd8 {[%emt 0:06:54]} 15. Rde1 {[%emt 0:02:45]} c6 {[%emt 0:02:37]} 16. Re2 {[%emt 0:01:12]} Nf7 {[%emt 0:01:32]} 17. Rhe1 {[%emt 0:01:04][%cal Oe3f5]} Kd8 {[%emt 0:10:31]} 18. Nh4 {[%emt 0:02:07]} Nh6 {[%emt 0:03:39]} 19. g4 {[%emt 0:04:25]} g5 {[%emt 0:04:49]} 20. Nf3 {[%emt 0:04:21]} Nf7 {[%emt 0:01:27]} 21. c4 {[%emt 0:02:16]} Ng6 {[%emt 0:08:45] [#] White must now prevent ...Nf4.} 22. Nf5 {[%emt 0:02:54]} (22. cxd5 $2 Nf4 23. Qb3 Nxe2+ 24. Rxe2 h5 $17) 22... Bf4 {[%emt 0:03:26]} 23. c5 {[%emt 0:02:43]} Bxd2+ {[%emt 0:02:00]} 24. Qxd2 {[%emt 0:00:43] And now Qa5+ would win.} Rxe2 {[%emt 0:00:37]} 25. Rxe2 {[%emt 0:00:39][%cal Be1e2,Be2e6,Be6f6][%mdl 32]} Qc7 {[%emt 0:05:08][%mdl 8192] Repels Qa5. A mistake that costs the game.} (25... Kc8 $11 {and Black has nothing to worry.}) 26. Re6 $18 {[%emt 0:03:35]} Nf4 {[%emt 0:03:07]} (26... Qf4 $142) 27. Rxf6 {[%emt 0:04:22] Strongly threatening Nd6.} (27. Re7 Qxe7 28. Nxe7 Kxe7 $18) 27... Re8 {[%emt 0:00:21]} 28. Nd6 {[%emt 0:10:49]} Re7 {[%emt 0:01:05] [#]} (28... Nxd6 29. cxd6 Qb6) 29. Nxg5 $1 {[%emt 0:09:38][%mdl 512] White is clearly winning.} Re1+ {[%emt 0:02:41]} (29... Nxg5 30. Rf8+) 30. Qxe1 {[%emt 0:03:26][%csl Gd6][%cal Re1e8]} Nd3+ {[%emt 0:02:04]} 31. Kd1 {[%emt 0:00:18] Weighted Error Value: White=0.08 (flawless) /Black=0.43.  Loses game:     	---       	Black=1      Mistake:       	---       	Black=2      Inaccurate:     	White=2     	Black=4      OK:         	White=6     	Black=8      Best:        	White=3     	---} 1-0